bitfinex/quotes_ETHUSD_20250529
["timestamp","ask_amount","ask_price","bid_price","bid_amount"]
[1748510600326,0.9916,2719.4,2718.9,7.62718185]
[1748510600530,0.9916,2719.4,2718.9,3.67794285]
[1748510600889,0.9916,2719.4,2718.8,10.0]
[1748510601055,0.9916,2719.4,2719.0,19.100533]
[1748510601241,0.9916,2719.4,2719.0,12.77834429]
[1748510601566,0.9916,2719.4,2719.0,3.67781129]
[1748510601865,0.9916,2719.4,2719.1,3.552337]
[1748510602434,0.9916,2719.4,2719.1,3.020269]
[1748510605144,0.9916,2719.4,2719.1,6.69795401]
[1748510605330,1.0626,2719.8,2719.1,10.0]
[1748510605533,1.0626,2719.8,2719.3,3.67738147]
[1748510605758,1.0626,2719.8,2719.2,13.67748158]
[1748510606068,1.0626,2719.8,2719.3,3.67735021]
[1748510606267,1.0626,2719.8,2719.4,10.0]
[1748510606743,1.0626,2719.8,2719.2,6.90468656]
[1748510606945,1.0626,2719.8,2719.3,3.858369]
[1748510607169,1.0626,2719.8,2719.4,10.0]
[1748510607880,4.73938734,2719.8,2719.4,10.0]
[1748510608188,4.73938734,2719.8,2719.1,3.67764939]
[1748510608594,1.0626,2719.8,2718.9,0.4341]
[1748510608765,1.0595,2719.6,2719.1,8.0]
[1748510609499,1.0595,2719.6,2719.1,11.67768722]
[1748510612381,1.0595,2719.6,2719.1,8.0]
[1748510612758,1.0595,2719.6,2719.1,11.67768696]
[1748510612964,4.73652775,2719.6,2719.1,8.0]
[1748510613158,4.73655098,2719.6,2719.1,8.0]
[1748510613572,1.0595,2719.6,2719.1,8.0]
[1748510614192,1.0595,2719.6,2719.1,11.67768303]
[1748510614464,1.0595,2719.6,2719.1,8.0]
[1748510614696,1.0595,2719.6,2719.1,11.67768423]
[1748510614902,1.0595,2719.6,2719.1,8.0]
[1748510615210,1.53312865,2719.6,2719.0,11.67781363]
[1748510615364,1.53312865,2719.6,2719.1,3.67768301]
[1748510615567,1.0595,2719.6,2719.1,3.67768301]
[1748510617784,1.0595,2719.6,2719.2,3.67754379]
[1748510617988,1.0595,2719.6,2719.0,8.0]
[1748510618315,1.0595,2719.6,2719.1,3.67760203]
[1748510619111,1.0595,2719.6,2719.2,3.67754504]
[1748510619604,1.0595,2719.6,2719.1,3.67762641]
[1748510619906,1.0595,2719.6,2719.2,10.0]
[1748510620111,1.0595,2719.6,2719.2,13.677537]
[1748510620285,1.0595,2719.6,2719.2,18.0]
[1748510620487,1.0595,2719.6,2719.2,8.0]
[1748510621487,1.0595,2719.6,2719.2,11.67754881]
[1748510621681,1.0595,2719.6,2719.2,8.0]
[1748510622118,1.0595,2719.6,2718.7,0.5524]
[1748510622119,0.47362486,2719.6,2718.7,0.5524]
[1748510622285,1.1182,2719.2,2718.6,3.67831047]
[1748510622485,1.1182,2719.2,2718.8,10.0]
[1748510622810,1.1182,2719.2,2718.9,3.6779502]
[1748510623513,1.1182,2719.2,2719.0,10.0]
[1748510625613,1.1182,2719.2,2718.9,3.67788997]
[1748510625953,1.1182,2719.2,2719.0,10.0]
[1748510626614,1.1182,2719.2,2718.7,8.0]
[1748510626799,1.1182,2719.2,2718.9,10.0]
[1748510627478,1.1182,2719.2,2718.8,13.67806508]
[1748510627719,1.1182,2719.2,2718.8,10.0]
[1748510628220,1.1182,2719.2,2718.8,13.67808455]
[1748510628590,1.1182,2719.2,2718.7,11.67822151]
[1748510630500,1.1182,2719.2,2718.7,8.0]
[1748510630728,1.0143,2719.1,2718.5,0.985]
[1748510630972,3.67792946,2719.0,2718.5,0.985]
[1748510631244,1.069,2718.9,2718.5,0.985]
[1748510631848,1.069,2718.9,2718.5,8.985]
[1748510632587,1.069,2718.9,2718.5,0.985]
[1748510632792,0.47468955,2718.8,2718.5,0.985]
[1748510633291,1.069,2718.9,2718.5,0.985]
[1748510638321,1.069,2718.9,2718.6,5.94422337]
[1748510638644,1.069,2718.9,2718.5,4.66341892]
[1748510639644,1.069,2718.9,2718.6,3.67832352]
[1748510639845,1.069,2718.9,2718.6,18.989297]
[1748510640047,1.069,2718.9,2718.6,8.989297]
[1748510640214,1.069,2718.9,2718.5,4.66346712]
[1748510640418,1.0933,2719.3,2718.8,10.0]
[1748510640757,1.0933,2719.3,2718.8,3.6780804]
[1748510640959,1.0933,2719.3,2718.8,13.6780804]
[1748510641174,1.0933,2719.3,2718.8,3.6780804]
[1748510641365,1.0933,2719.3,2718.7,3.67817164]
[1748510641673,1.0933,2719.3,2718.8,10.0]
[1748510641974,1.0933,2719.3,2718.8,13.67807167]
[1748510642134,1.0933,2719.3,2718.9,3.67793554]
[1748510642335,1.0933,2719.3,2718.9,8.0]
[1748510642888,1.0027,2719.7,2718.9,11.67790935]
[1748510643034,4.67958569,2719.7,2719.0,3.67782272]
[1748510643744,3.67707842,2719.6,2718.9,11.67789894]
[1748510644754,4.67964604,2719.7,2718.9,11.67794678]
[1748510645069,1.0027,2719.7,2719.1,3.67768148]
[1748510645634,1.0027,2719.7,2719.2,3.67754484]
[1748510645970,1.0027,2719.7,2719.0,11.67782272]
[1748510645971,1.0027,2719.7,2719.1,3.67761506]
[1748510649363,1.0027,2719.7,2719.0,15.44581852]
[1748510649661,1.0027,2719.7,2719.1,3.67761455]
[1748510650579,4.67958916,2719.7,2719.0,15.4457864]
[1748510650876,1.0839,2719.4,2718.8,3.03045]
[1748510651053,1.0839,2719.4,2719.0,8.0]
[1748510651376,1.0839,2719.4,2718.8,3.67798745]
[1748510651554,1.0839,2719.4,2719.0,8.0]
[1748510653152,1.0839,2719.4,2719.0,11.67777938]
[1748510655286,1.0839,2719.4,2719.0,8.0]
[1748510655866,1.0839,2719.4,2719.0,3.67780313]
[1748510657401,1.0839,2719.4,2719.1,3.67767258]
[1748510657551,1.0839,2719.4,2719.0,3.67776682]
[1748510657757,1.0839,2719.4,2718.9,11.67788454]
[1748510658061,1.0839,2719.4,2719.0,3.67780978]
[1748510663492,1.0839,2719.4,2719.1,3.6776783]
[1748510663801,1.0839,2719.4,2719.1,3.67761218]
[1748510663958,1.0839,2719.4,2719.0,3.67780253]
[1748510664301,1.0839,2719.4,2718.9,11.67791113]
[1748510664798,1.0839,2719.4,2718.9,11.766]
[1748510664958,1.0839,2719.4,2718.8,3.67802891]
[1748510665158,1.0839,2719.4,2718.8,7.44402891]
[1748510665879,1.0839,2719.4,2719.0,8.0]
[1748510666080,4.7612619,2719.4,2718.9,8.0]
[1748510666579,4.76118188,2719.4,2718.7,11.6781621]
[1748510666757,3.67743991,2719.3,2718.7,8.0]
[1748510667095,4.67995388,2719.2,2718.7,8.0]
[1748510667469,1.0024,2719.2,2718.7,8.0]
[1748510668307,1.0024,2719.2,2718.7,11.67822191]
[1748510669801,1.0024,2719.2,2718.7,8.0]
[1748510671424,1.0024,2719.2,2718.7,11.67822628]
[1748510672724,1.0024,2719.2,2718.9,3.67788751]
[1748510673076,1.0024,2719.2,2718.8,3.67803264]
[1748510673691,1.0024,2719.2,2718.8,3.67806916]
[1748510674026,1.0024,2719.2,2719.0,3.67782149]
[1748510674695,1.0024,2719.2,2718.9,3.67789352]
[1748510674901,1.0024,2719.2,2718.9,11.67789352]
[1748510675980,1.0024,2719.2,2718.9,8.0]
[1748510678528,1.0024,2719.2,2718.9,11.67794993]
[1748510678893,1.0024,2719.2,2718.9,8.0]
[1748510679090,1.0024,2719.2,2718.9,11.67795228]
[1748510681144,1.0024,2719.2,2719.0,3.67781514]
[1748510681650,1.0024,2719.2,2718.9,11.67795766]
[1748510683713,1.0024,2719.2,2719.0,3.67781412]
[1748510683914,1.0705,2719.6,2719.0,3.67781412]
[1748510684226,1.0705,2719.6,2719.0,3.67782272]
[1748510684433,1.0705,2719.6,2719.0,3.67775359]
[1748510684633,4.74753603,2719.6,2718.9,11.67788785]
[1748510685457,3.67716709,2719.5,2718.9,11.67788785]
[1748510685654,3.67716709,2719.5,2718.9,8.0]
[1748510686010,1.0168,2719.4,2718.9,8.0]
[1748510686213,1.0168,2719.4,2719.0,0.5]
[1748510686414,1.0168,2719.4,2718.9,2.768637]
[1748510686659,1.57044084,2719.4,2718.9,2.424177]
[1748510687251,5.24773075,2719.4,2718.9,10.0]
[1748510687458,5.24773075,2719.4,2718.8,10.0]
[1748510687672,3.67744559,2719.3,2718.8,10.0]
[1748510687982,0.9972,2719.3,2718.9,2.315777]
[1748510688276,0.9972,2719.3,2718.5,5.55699902]
[1748510688277,4.67463728,2719.3,2718.6,3.67833186]
[1748510688435,4.67463728,2719.3,2718.7,10.0]
[1748510689306,1.002,2718.9,2718.7,10.0]
[1748510689473,4.68003896,2718.9,2718.5,1.44214993]
[1748510689790,1.0608,2718.8,2718.5,0.46014993]
[1748510689950,4.73891796,2718.8,2718.5,0.46014993]
[1748510690457,1.0608,2718.8,2718.5,0.46014993]
[1748510691806,1.0108,2718.6,2718.5,0.46014993]
[1748510692392,4.68916386,2718.6,2718.5,0.46014993]
[1748510693186,1.0108,2718.6,2718.5,0.46014993]
[1748510698005,3.67687612,2719.7,2718.6,8.0]
[1748510698207,3.67710605,2719.6,2718.9,3.67794505]
[1748510698494,1.0594,2719.3,2718.8,11.67801285]
[1748510699158,1.0594,2719.3,2718.8,8.0]
[1748510699374,1.0594,2719.3,2718.6,8.0]
[1748510699553,4.7368494,2719.3,2718.6,11.67828723]
[1748510699880,1.90447484,2719.3,2718.6,8.0]
[1748510700196,0.05,2719.9,2718.5,0.46014993]
[1748510700197,4.72800427,2719.1,2718.5,0.46014993]
[1748510700397,4.72800427,2719.1,2718.7,8.0]
[1748510700600,1.0503,2719.1,2718.6,2.274403]
[1748510700902,1.0503,2719.1,2718.8,8.0]
[1748510701217,1.0503,2719.1,2718.7,8.0]
[1748510702114,1.0503,2719.1,2718.6,8.0]
[1748510702300,1.52308756,2719.1,2718.6,12.274303]
[1748510702635,1.52308756,2719.1,2718.6,2.274303]
[1748510703023,1.52308756,2719.1,2718.6,5.9526664]
[1748510703226,1.0503,2719.1,2718.6,3.6783634]
[1748510703532,1.0503,2719.1,2718.7,10.0]
[1748510703742,0.9933,2719.4,2718.7,3.67822856]
[1748510703935,0.9933,2719.4,2718.9,10.0]
[1748510704106,1.83674763,2719.4,2718.8,13.67809327]
[1748510704490,0.9933,2719.4,2718.8,3.67809327]
[1748510705813,0.9933,2719.4,2718.8,3.67799177]
[1748510706315,0.9933,2719.4,2718.7,2.783063]
[1748510706529,0.9933,2719.4,2718.8,5.93164018]
[1748510706732,3.67711504,2719.6,2718.7,6.46124248]
[1748510706733,0.9849,2719.6,2719.0,10.0]
[1748510706932,0.9849,2719.6,2719.2,3.67746822]
[1748510708347,0.9849,2719.6,2719.3,3.6774043]
[1748510708545,0.9849,2719.6,2718.9,9.69039649]
[1748510708842,0.9849,2719.6,2718.9,13.149554]
[1748510709739,0.9849,2719.6,2719.2,3.67748795]
[1748510710546,0.9849,2719.6,2719.1,10.0]
[1748510710547,1.0154,2719.2,2718.7,8.0]
[1748510710748,1.0154,2719.2,2718.8,10.0]
[1748510713246,1.0154,2719.2,2718.8,13.6780304]
[1748510713542,1.0154,2719.2,2718.8,10.0]
[1748510715430,1.0154,2719.2,2718.7,3.67816696]
[1748510715618,1.0154,2719.2,2718.8,10.0]
[1748510716546,1.48466914,2719.2,2718.5,1.44014993]
[1748510716754,0.9655,2718.9,2718.5,9.44014993]
[1748510717119,0.9655,2718.9,2718.5,1.44014993]
[1748510717321,0.9655,2718.9,2718.5,11.44014993]
[1748510718043,0.9655,2718.9,2718.6,3.6783537]
[1748510718617,0.9655,2718.9,2718.6,13.6783537]
[1748510719018,0.9655,2718.9,2718.6,10.0]
[1748510719225,0.9655,2718.9,2718.5,1.44014993]
[1748510719438,0.9655,2718.9,2718.5,5.11859634]
[1748510719635,0.9655,2718.9,2718.6,10.0]
[1748510721075,0.9655,2718.9,2718.5,5.11859634]
[1748510722375,0.9655,2718.9,2718.6,13.67834655]
[1748510722771,0.9655,2718.9,2718.6,10.0]
[1748510725051,3.67782272,2719.0,2718.5,0.46014993]
[1748510725249,1.0772,2718.8,2718.5,0.46014993]
[1748510727483,1.0344,2719.2,2718.5,0.46014993]
[1748510727689,8.47497803,2719.2,2718.5,4.13857065]
[1748510728009,8.47497803,2719.2,2718.5,0.46014993]
[1748510728010,4.52519287,2719.1,2718.5,0.46014993]
[1748510728150,4.5251889,2719.1,2718.5,0.46014993]
[1748510728350,0.8474978,2719.1,2718.5,0.46014993]
[1748510728565,4.52519079,2719.1,2718.5,0.46014993]
[1748510728780,0.93225908,2719.0,2718.5,0.46014993]
[1748510729490,4.61009909,2719.0,2718.5,0.46014993]
[1748510732495,4.61017672,2719.0,2718.5,0.46014993]
[1748510733288,1.0614,2718.9,2718.5,0.46014993]
[1748510733487,1.0614,2718.9,2718.5,10.46014993]
[1748510733688,0.56715767,2718.8,2718.5,10.46014993]
[1748510733879,0.56715767,2718.8,2718.5,0.46014993]
[1748510734409,0.56715767,2718.8,2718.4,10.0]
[1748510735279,0.56715767,2718.8,2718.3,10.0]
[1748510735600,4.73937048,2718.9,2718.4,10.0]
[1748510735802,1.0614,2718.9,2718.4,3.5926]
[1748510735979,1.0614,2718.9,2718.3,3.67874843]
[1748510736177,1.0614,2718.9,2718.4,3.4325]
[1748510738776,4.73939546,2718.9,2718.4,3.4325]
[1748510738971,4.73939546,2718.9,2718.4,10.0]
[1748510739307,1.0614,2718.9,2718.5,10.0]
[1748510739513,1.0614,2718.9,2718.4,4.2084]
[1748510739803,1.0614,2718.9,2718.5,10.0]
[1748510740007,3.67762207,2719.2,2718.5,3.67840444]
[1748510740226,3.67737712,2719.4,2718.6,8.155735]
[1748510740227,1.1206,2719.1,2718.6,8.155735]
[1748510740366,4.79804552,2719.3,2718.7,5.292825]
[1748510740567,1.1206,2719.3,2718.6,0.234]
[1748510740773,1.1206,2718.9,2718.2,3.997]
[1748510740973,1.1206,2718.9,2718.3,10.0]
[1748510741198,4.79867009,2718.9,2718.3,10.0]
[1748510741387,3.67813397,2718.8,2718.3,10.0]
[1748510741783,1.1206,2718.9,2718.3,10.0]
[1748510741784,4.79862094,2718.9,2718.3,10.0]
[1748510742384,3.67813348,2718.8,2718.2,5.959012]
[1748510742598,5.27847086,2718.9,2718.3,10.0]
[1748510743206,3.6781556,2718.8,2718.3,10.0]
[1748510743501,3.6781556,2718.8,2718.2,8.0]
[1748510745906,1.1349,2718.6,2718.2,8.0]
[1748510747302,1.61620886,2718.6,2718.2,8.0]
[1748510747514,5.29466744,2718.6,2718.2,8.0]
[1748510747814,1.61620886,2718.6,2718.1,10.98]
[1748510748018,1.1349,2718.6,2718.1,10.98]
[1748510748515,1.1349,2718.6,2718.1,14.65901756]
[1748510748720,1.1349,2718.6,2718.2,12.087285]
[1748510748882,1.1349,2718.6,2718.2,10.0]
[1748510749082,1.1349,2718.6,2718.1,10.98]
[1748510749283,1.1349,2718.6,2718.1,14.65901918]
[1748510749522,1.1349,2718.6,2718.1,10.98]
[1748510749682,1.1349,2718.6,2718.2,10.0]
[1748510750014,1.1349,2718.6,2718.1,0.98]
[1748510750015,1.61621437,2718.6,2718.1,10.98]
[1748510750216,1.61621437,2718.6,2718.2,10.0]
[1748510750523,1.61621437,2718.6,2718.1,10.98]
[1748510750706,1.61621437,2718.6,2718.2,10.0]
[1748510750911,5.29458632,2718.6,2718.2,10.0]
[1748510751119,0.52945863,2718.5,2718.1,10.98]
[1748510751281,4.81333531,2718.6,2718.1,10.98]
[1748510751479,1.0302,2718.5,2718.1,0.98]
[1748510751721,3.6786366,2718.4,2718.1,0.98]
[1748510752038,4.70873632,2718.5,2718.1,0.98]
[1748510752203,5.18805632,2718.5,2718.1,0.98]
[1748510753322,1.50952,2718.5,2718.1,0.98]
[1748510753495,5.18812816,2718.5,2718.1,0.98]
[1748510753986,5.18812816,2718.5,2718.0,3.0]
[1748510754425,3.67885374,2718.3,2718.0,3.0]
[1748510754609,0.9669,2718.2,2718.0,3.0]
[1748510762000,1.0364,2718.5,2718.0,3.0]
[1748510763424,1.0364,2718.5,2718.0,3.0171]
[1748510763627,1.0465,2718.7,2718.1,0.0367869]
[1748510763829,1.0465,2718.9,2718.4,3.6957101]
[1748510764635,1.0465,2718.9,2718.4,0.0171]
[1748510764953,1.0465,2718.9,2718.4,3.69569546]
[1748510765109,1.0465,2718.9,2718.4,0.0171]
[1748510765529,3.67815712,2718.8,2718.1,11.69607455]
[1748510765748,3.67815712,2718.8,2718.3,10.0]
[1748510765961,4.72452113,2718.9,2718.3,10.0]
[1748510766165,3.67812297,2718.8,2718.3,10.0]
[1748510766307,3.67830011,2718.7,2718.1,8.0]
[1748510766506,0.9965,2718.7,2718.0,3.0]
[1748510766737,4.67528261,2718.3,2718.0,3.0]
[1748510767046,4.675302,2718.3,2718.0,3.0]
[1748510767838,4.67526987,2718.3,2718.0,3.0]
[1748510769845,3.67892051,2718.2,2718.0,3.0]
[1748510770004,4.67533947,2718.3,2718.0,3.0]
[1748510770541,3.67891765,2718.2,2718.0,3.0]
[1748510770930,4.6753066,2718.3,2718.0,3.0]
[1748510772117,0.9965,2718.3,2718.0,3.0]
[1748510772445,3.67869388,2718.4,2718.0,3.0]
[1748510774646,3.6788243,2718.3,2718.0,3.0]
[1748510775650,3.67891123,2718.2,2718.0,3.0]
[1748510776047,1.0395,2718.5,2718.0,3.0]
[1748510776231,3.67885827,2718.3,2718.0,3.0]
[1748510776843,3.67876981,2718.3,2718.0,3.0]
[1748510777041,4.6973405,2718.1,2718.0,3.0]
[1748510780190,1.0183,2718.1,2718.0,3.0]
[1748510780493,4.6973405,2718.1,2718.0,3.0]
[1748510780991,4.6475405,2718.1,2718.0,3.0]
[1748510783660,7.44194517,2718.2,2718.0,3.0]
[1748510783996,3.67894517,2718.2,2718.0,3.0]
[1748510784785,7.44071412,2718.4,2718.0,3.0]
[1748510785300,3.67871412,2718.4,2718.0,3.0]
[1748510785667,3.67878008,2718.3,2718.0,3.0]
[1748510785871,3.67870079,2718.4,2718.0,3.0]
[1748510786054,3.67854638,2718.5,2718.0,3.0]
[1748510786368,3.67854638,2718.5,2718.0,3.0905]
[1748510787262,3.678571,2718.5,2718.0,3.0905]
[1748510787465,3.678571,2718.5,2717.7,10.0]
[1748510787685,3.67863604,2718.4,2717.8,6.669533]
[1748510787998,3.67863604,2718.4,2717.9,10.0]
[1748510788159,3.67876981,2718.3,2717.7,10.0]
[1748510788359,3.67876981,2718.3,2717.7,3.0672]
[1748510788569,3.67876981,2718.3,2717.8,10.0]
[1748510788785,3.6787033,2718.4,2717.8,2.7012]
[1748510789554,3.67856501,2718.5,2717.7,6.159933]
[1748510789759,3.67856501,2718.5,2717.8,10.0]
[1748510789959,3.67856501,2718.5,2717.9,10.0]
[1748510790705,3.67849917,2718.5,2717.9,10.0]
[1748510791198,3.67873913,2718.4,2717.7,15.000933]
[1748510791406,3.67873913,2718.4,2717.8,10.0]
[1748510791697,3.67873913,2718.4,2717.8,3.320033]
[1748510791899,3.67873913,2718.4,2717.7,12.712933]
[1748510792058,3.67879824,2718.3,2717.7,10.0]
[1748510792259,4.75639824,2718.3,2717.6,7.44165108]
[1748510792459,4.75639824,2718.3,2717.7,10.0]
[1748510792869,4.75639824,2718.3,2717.8,10.0]
[1748510793788,4.75639824,2718.3,2717.7,10.0]
[1748510794107,4.75639824,2718.3,2717.8,10.0]
[1748510794265,4.75639824,2718.3,2717.7,10.0]
[1748510794862,4.75639824,2718.3,2717.8,10.0]
[1748510795096,1.0776,2718.3,2717.8,10.0]
[1748510795263,1.0776,2718.3,2717.8,2.703685]
[1748510795487,3.67870069,2718.4,2717.8,2.703685]
[1748510795685,3.67844548,2718.6,2717.9,3.67929267]
[1748510795917,7.44044548,2718.6,2717.9,13.67929267]
[1748510796113,7.44044548,2718.6,2717.9,3.67929267]
[1748510796327,3.67844548,2718.6,2717.9,3.67929267]
[1748510799224,8.46386078,2718.7,2717.8,13.67937971]
[1748510799423,3.67844118,2718.6,2717.9,3.67928162]
[1748510799787,1.0236,2718.7,2718.0,15.88773]
[1748510799988,1.0066,2718.9,2718.3,3.67870198]
[1748510800314,4.68439175,2719.1,2718.3,8.0]
[1748510801199,3.67782716,2719.0,2718.3,11.67867419]
[1748510802897,4.6843464,2719.1,2718.3,11.67867419]
[1748510803534,4.6843464,2719.1,2718.4,3.67863365]
[1748510803862,4.6843464,2719.1,2718.6,10.0]
[1748510803863,1.0066,2719.1,2718.6,10.0]
[1748510804054,1.0066,2719.1,2718.5,3.67849655]
[1748510805542,4.6843075,2719.1,2718.6,10.0]
[1748510805703,1.0066,2719.1,2718.5,3.67849378]
[1748510806599,4.6843222,2719.1,2718.5,17.287449]
[1748510806910,4.6843222,2719.1,2718.6,10.0]
[1748510807102,4.6843222,2719.1,2718.5,10.700095]
[1748510807636,1.0066,2719.1,2718.5,3.67848516]
[1748510807836,4.68433295,2719.1,2718.5,17.256689]
[1748510808037,4.68433295,2719.1,2718.6,10.0]
[1748510808529,4.68433295,2719.1,2718.5,16.025956]
[1748510808700,4.68433295,2719.1,2718.6,10.0]
[1748510808897,4.68433295,2719.1,2718.5,16.025956]
[1748510809098,4.68433295,2719.1,2718.6,10.0]
[1748510809324,4.68433295,2719.1,2718.5,16.025956]
[1748510809538,4.68433295,2719.1,2718.6,10.0]
[1748510809732,4.68433295,2719.1,2718.5,16.025956]
[1748510809905,4.68433295,2719.1,2718.6,10.0]
[1748510810427,4.68433295,2719.1,2718.5,15.800456]
[1748510811041,1.0066,2719.1,2718.5,20.94505714]
[1748510811365,4.72772859,2719.5,2718.7,3.67810763]
[1748510811654,3.67729439,2719.4,2718.8,10.0]
[1748510812343,4.72769552,2719.5,2718.8,13.67808479]
[1748510812746,4.72769552,2719.5,2718.9,3.67795141]
[1748510812747,1.0505,2719.5,2718.9,3.67795141]
[1748510813117,1.0505,2719.5,2719.0,5.339021]
[1748510813335,1.0505,2719.5,2719.1,3.14465]
[1748510813531,1.0505,2719.5,2719.1,6.037033]
[1748510813731,1.0505,2719.5,2719.1,2.864733]
[1748510814444,3.67695729,2719.7,2716.7,0.979]
[1748510814445,0.55,2718.9,2716.7,0.979]
[1748510814670,3.67926486,2718.0,2717.2,19.81159856]
[1748510814803,1.0597,2717.9,2717.1,4.01180517]
[1748510815006,1.0597,2717.9,2717.2,3.77]
[1748510815007,3.67952637,2717.8,2717.2,3.77]
[1748510815328,4.73906252,2717.9,2717.3,8.0]
[1748510816607,4.73905188,2717.9,2717.2,8.0]
[1748510816809,4.73905188,2717.9,2717.2,11.769]
[1748510817156,4.73905188,2717.9,2717.2,8.0]
[1748510817324,4.73905188,2717.9,2717.2,11.768]
[1748510817803,4.73905188,2717.9,2717.2,15.44824581]
[1748510818651,4.73905188,2717.9,2717.2,11.68024581]
[1748510818816,4.73905188,2717.9,2717.2,15.44824581]
[1748510819417,4.73905188,2717.9,2717.2,11.768]
[1748510819613,4.73905188,2717.9,2717.2,11.767]
[1748510820563,4.73905188,2717.9,2717.2,15.44722957]
[1748510820770,4.73905188,2717.9,2717.2,11.767]
[1748510822464,4.73905188,2717.9,2717.2,15.44724025]
[1748510823133,3.67948126,2717.8,2717.2,11.767]
[1748510824587,4.73904103,2717.9,2717.2,11.767]
[1748510824866,1.0597,2717.9,2717.2,11.767]
[1748510825165,3.67947489,2717.8,2717.2,11.767]
[1748510825489,4.73906872,2717.9,2717.2,11.767]
[1748510825772,3.67945201,2717.8,2717.2,11.767]
[1748510826637,4.73907844,2717.9,2717.2,11.767]
[1748510827079,4.73907844,2717.9,2717.2,10.0]
[1748510827080,1.0597,2717.9,2717.2,10.0]
[1748510827379,3.6797187,2717.6,2717.1,1.029]
[1748510829652,4.64864495,2717.7,2717.1,1.029]
[1748510830339,3.67971739,2717.6,2717.1,0.05]
[1748510830541,4.14458189,2717.6,2717.1,0.05]
[1748510830753,4.14458189,2717.6,2717.2,8.0]
[1748510830949,3.67971739,2717.6,2717.2,8.0]
[1748510831486,4.64864678,2717.7,2717.2,8.0]
[1748510831697,4.64859175,2717.7,2717.2,8.0]
[1748510831837,0.969,2717.7,2717.2,8.0]
[1748510832470,4.64860004,2717.7,2717.2,8.0]
[1748510832641,4.64860004,2717.7,2717.1,10.05]
[1748510833071,0.969,2717.7,2717.1,13.73039198]
[1748510834808,4.6485911,2717.7,2717.1,13.73038613]
[1748510835180,4.6485911,2717.7,2717.1,10.05]
[1748510835508,4.6485911,2717.7,2717.1,0.05]
[1748510836218,4.6485911,2717.7,2717.1,3.73038201]
[1748510836739,0.969,2717.7,2717.1,3.73038201]
[1748510838877,4.64860282,2717.7,2717.1,3.73038201]
[1748510839239,4.64860282,2717.7,2717.1,0.05]
[1748510839785,0.969,2717.7,2717.1,0.05]
[1748510840115,4.64864369,2717.7,2717.1,0.05]
[1748510840282,0.969,2717.7,2717.1,3.73039207]
[1748510841020,4.64858229,2717.7,2717.1,3.73039207]
[1748510841224,4.64858229,2717.7,2717.1,0.05]
[1748510841682,4.64858229,2717.7,2717.1,3.73039329]
[1748510841886,0.969,2717.7,2717.1,3.73039329]
[1748510842114,4.64859138,2717.7,2717.1,3.73039329]
[1748510843289,4.64859138,2717.7,2717.1,0.05]
[1748510843691,4.64859138,2717.7,2717.1,3.73038959]
[1748510844031,4.64859138,2717.7,2717.1,0.05]
[1748510844191,4.64859138,2717.7,2717.1,3.730377]
[1748510849734,0.969,2717.7,2717.1,3.730377]
[1748510851927,4.64861861,2717.7,2717.1,3.730377]
[1748510853047,1.054,2718.0,2717.1,8.05]
[1748510853247,1.054,2718.0,2717.4,3.67992401]
[1748510853408,1.054,2718.0,2717.3,11.68002995]
[1748510853609,1.054,2718.0,2717.4,3.6798568]
[1748510856360,1.054,2718.0,2717.3,8.98]
[1748510856563,3.762,2718.6,2717.3,0.98]
[1748510856855,3.67906408,2718.1,2717.5,8.0]
[1748510857044,4.52113112,2718.1,2717.5,8.0]
[1748510857241,3.67906408,2718.1,2717.5,8.0]
[1748510857447,3.67893697,2718.2,2717.5,11.6798396]
[1748510858155,3.67897518,2718.2,2717.6,8.0]
[1748510859558,3.67908486,2718.1,2717.6,8.0]
[1748510859871,4.74157677,2718.3,2717.6,8.0]
[1748510859872,3.67903792,2718.2,2717.6,8.0]
[1748510860026,3.67902847,2718.2,2717.6,8.0]
[1748510860857,4.74162219,2718.3,2717.6,3.67969999]
[1748510862741,3.67890995,2718.2,2717.6,3.67969999]
[1748510863354,3.67907557,2718.1,2717.5,8.0]
[1748510863776,3.67900926,2718.2,2717.5,18.0]
[1748510864081,3.67900926,2718.2,2717.5,11.67984466]
[1748510864376,3.67900926,2718.2,2717.5,8.0]
[1748510865066,3.67900926,2718.2,2717.5,10.0]
[1748510865277,3.67907588,2718.1,2717.5,10.0]
[1748510866147,3.67918556,2718.0,2717.5,10.0]
[1748510868131,3.6791058,2718.1,2717.5,10.0]
[1748510869143,3.67917975,2718.0,2717.5,10.0]
[1748510870259,3.6791022,2718.1,2717.5,10.0]
[1748510870461,3.67919267,2718.0,2717.5,10.0]
[1748510872034,3.67919267,2718.0,2717.6,10.0]
[1748510872276,3.67919267,2718.0,2717.5,12.338]
[1748510872458,3.67919267,2718.0,2717.6,10.0]
[1748510872767,3.67919267,2718.0,2717.5,10.0]
[1748510872976,3.67919267,2718.0,2717.6,10.0]
[1748510873333,3.67919267,2718.0,2717.5,10.0]
[1748510874445,3.67919267,2718.0,2717.6,10.0]
[1748510875273,3.67919267,2718.0,2717.5,10.0]
[1748510875474,3.67919267,2718.0,2717.6,10.0]
[1748510875660,3.67919267,2718.0,2717.4,13.761]
[1748510875974,4.64242092,2717.9,2717.4,3.761]
[1748510876157,3.67954755,2717.8,2717.4,3.761]
[1748510876355,4.64248455,2717.9,2717.4,3.761]
[1748510876809,0.9631,2717.9,2717.5,10.0]
[1748510877967,4.64241687,2717.9,2717.5,10.0]
[1748510878374,0.9631,2717.9,2717.5,10.0]
[1748510883347,0.9631,2717.9,2717.5,8.0]
[1748510883645,5.10671657,2717.9,2717.5,8.0]
[1748510883849,5.10671657,2717.9,2717.4,8.0]
[1748510885287,4.64248268,2717.9,2717.4,8.0]
[1748510887401,3.67958199,2717.7,2717.2,3.76]